Cogmind - Beta 12 @@@ ROGUE MODE // 2023.03.08 @ 22:53:53 Player: ExAliquo Result: Destroyed by DAS Turret with DAS Cannon Performance ------------- Evolutions (1) 500 Regions Visited (5) 1000 Robots Destroyed (40) 200 Value Destroyed (1077) 1077 Prototype IDs (23) 460 Alien Tech Used (0) 0 Bonus (314) 314 TOTAL SCORE: 3551 Bonus ------- Follower Combat Kills 14 Aligned with FarCom 300 Cogmind --------- Core Integrity 0/400 Matter 300/300 Energy 100/100 System Corruption 4% Temperature Cool (0) Movement Core (1350) Ox26 Location -9/Exiles Parts ------- > --- POWER (1) -------- (None) > --- PROPULSION (3) --- (None) > --- UTILITY (3) ------ Huge Storage Unit Signal Interpreter > --- WEAPON (2) ------- (None) > --- INVENTORY (25) --- Improved Ion Engine Improved Ion Engine Nuclear Core Light Nuclear Core Light Fission Core Light Fission Core Combat Airjet Faulty Improved Flight Unit Improved Flight Unit Faulty Improved Flight Unit Improved Flight Unit Flying Fortress v7 Heat Sink Cooling System Structural Scanner Improved EM Shotgun Improved EM Shotgun Beam Rifle Assault Rifle Light Assault Rifle Improved Grenade Launcher Peak State ------------ > --- POWER ------------ Improved Ion Engine > --- PROPULSION ------- Light Treads Light Treads Light Treads > --- UTILITY ---------- Cooling System Huge Storage Unit Signal Interpreter > --- WEAPON ----------- Beam Rifle Light Assault Rifle > --- INVENTORY -------- Improved Ion Engine Improved Ion Engine Nuclear Core Light Nuclear Core Light Fission Core Light Fission Core Light Treads Combat Airjet Improved Flight Unit Improved Flight Unit Improved Flight Unit Improved Flight Unit Flying Fortress v7 Heat Sink Cooling System Structural Scanner Improved EM Shotgun Improved EM Shotgun Beam Rifle Assault Rifle Light Assault Rifle Improved Grenade Launcher [Rating: 20] Favorites ----------- Power Improved Ion Engine Engine Improved Ion Engine Propulsion Light Treads Treads Light Treads Leg Aluminum Leg Wheel Compact Wheel Utility Cooling System Device Cooling System Storage Huge Storage Unit Processor Signal Interpreter Protection Light Armor Plating Weapon Beam Rifle Energy Gun Beam Rifle Ballistic Gun Light Assault Rifle Build | -11 -10 -10 -9 -9 -9 ------- Run | Jun Mat Min Mat Min Exi Slots Evolved 2 | . . . 2 . . Power . | . . . . . . Propulsion 1 | . . . 1 . . Utility 1 | . . . 1 . . Weapon . | . . . . . . Parts Attached 31 | . 8 6 10 5 2 Power 5 | . 1 1 1 2 . Engine 5 | . 1 1 1 2 . Core . | . . . . . . Reactor . | . . . . . . Propulsion 14 | . 3 4 5 1 1 Treads 9 | . 1 1 5 1 1 Leg . | . . . . . . Wheel 5 | . 2 3 . . . Hover . | . . . . . . Flight . | . . . . . . Utility 6 | . 2 . 3 1 . Device 2 | . 1 . . 1 . Storage 2 | . 1 . 1 . . Processor 1 | . . . 1 . . Hackware . | . . . . . . Protection 1 | . . . 1 . . Artifact . | . . . . . . Weapon 6 | . 2 1 1 1 1 Energy Gun 5 | . 2 1 1 . 1 Energy Cannon . | . . . . . . Ballistic Gun 1 | . . . . 1 . Ballistic Cannon . | . . . . . . Launcher . | . . . . . . Special Weapon . | . . . . . . Impact Weapon . | . . . . . . Slashing Weapon . | . . . . . . Piercing Weapon . | . . . . . . Special Melee Weapon . | . . . . . . Unidentified Prototypes . | . . . . . . Parts Lost 16 | . . 3 3 2 8 Power 3 | . . . 1 1 1 Propulsion 6 | . . 2 . . 4 Utility 3 | . . . 2 . 1 Weapon 4 | . . 1 . 1 2 Highest Loss Streak 8 | . . 2 2 1 8 To Critical Strikes . | . . . . . . Average Slot Usage (%) 97 | . 99 98 95 96 98 Engine 11 | . 14 14 10 10 10 Treads 21 | . 5 1 18 33 32 Wheel 9 | . 20 24 14 . . Device 10 | . 13 14 8 8 11 Storage 11 | . 14 14 11 11 11 Processor 5 | . . . 1 11 11 Protection 2 | . . . 8 . . Energy Gun 20 | . 25 28 22 19 10 Ballistic Gun 2 | . 2 . . 2 10 Naked Turns . | . . . . . . Heaviest Build 98 | 11 35 35 98 95 93 Greatest Support 60 | 20 32 32 60 60 60 Greatest Overweight (x) 27 | . 1 2 4 1 27 Average Overweight (x) 1 | . . 1 1 1 1 Largest Inventory Capacity 25 | 8 15 15 25 25 25 Average Capacity 21 | 8 11 15 21 25 25 Most Carried 25 | 6 13 15 25 25 25 Average Carried 20 | 6 9 13 19 24 24 Final Capacity 25 | 8 15 15 25 25 25 Final Carried 25 | 6 13 15 25 25 24 Class Distribution -------------------- 70% | Scavenger-Mutant 29% | Mutant Dominant Class ---------------- Mutant | -10/Materials Mutant | -10/Mines Scavenger-Mutant | -9/Materials Scavenger-Mutant | -9/Mines Scavenger-Mutant | -9/Exiles Resources | -11 -10 -10 -9 -9 -9 ----------- Run | Jun Mat Min Mat Min Exi Matter Collected 482 | 200 80 55 95 52 . Remotely . | . . . . . . Salvage Created 1748 | . 375 310 766 297 . Parts 68 | . 18 9 30 11 . Haulers Intercepted 3 | . 2 . 1 . . Recyclers Shooed 2 | . . . 2 . . Parts Field Recycled . | . . . . . . Retrieved Matter . | . . . . . . Parts Self-Destructed . | . . . . . . Prevented . | . . . . . . Kills | -11 -10 -10 -9 -9 -9 ------- Run | Jun Mat Min Mat Min Exi Combat Hostiles Destroyed 27 | . 5 6 12 4 . Guns 23 | . 3 5 11 4 . AOE 2 | . 2 . . . . Classes Destroyed 9 | . 3 1 3 2 . Worker 2 | . . 2 . . . Hauler 3 | . 2 . 1 . . Recycler 4 | . . . 3 1 . Watcher 4 | . 2 . 2 . . Swarmer 3 | . . . 3 . . Grunt 20 | . 5 6 7 2 . Brawler 1 | . . . . 1 . Duelist 1 | . . . . 1 . Sentry 2 | . . . 2 . . Best Kill Streak 4 | . 2 3 4 2 . Combat Bots Only 3 | . 2 2 3 2 . Max Kills in Single Turn 2 | . 2 1 1 1 . Gunslinging . | . . . . . . Exploded 2 | . 2 . . . . Melee . | . . . . . . Uniques/NPCs Destroyed 1 | . . . . . 1 EX-BIN (-9/Exiles) Combat | -11 -10 -10 -9 -9 -9 -------- Run | Jun Mat Min Mat Min Exi Damage Taken 2278 | . 147 411 595 260 865 Core 513 | . 24 67 155 20 247 Absorbed by Shields . | . . . . . . Core Remaining (%) 81 | 100 . 63 . . . Volleys Fired 111 | . 19 32 41 19 . Largest 2 | . 2 2 2 2 . Hottest 112 | . 112 112 112 112 . Shots Fired 222 | . 38 64 82 37 1 Gun 222 | . 38 64 82 37 1 Cannon . | . . . . . . Launcher . | . . . . . . Special . | . . . . . . Kinetic 3 | . . . . 2 1 Thermal 219 | . 38 64 82 35 . Explosive . | . . . . . . Electromagnetic . | . . . . . . Robot Hit Streak 16 | . 6 8 16 10 . Robot Miss Streak 3 | . 2 3 3 3 1 Penetration Max . | . . . . . . Secondary Targets 3 | . . 1 1 1 . Max Gunslinging Chain 1 | . . 1 1 1 . Shots Hit Robots 147 | . 23 39 59 26 . Core Hits 63 | . 13 14 27 9 . Critical Kills . | . . . . . . Critical Parts Destroyed . | . . . . . . Critical Strikes 21 | . 4 5 11 1 . Burn 21 | . 4 5 11 1 . Melee Attacks . | . . . . . . Impact . | . . . . . . Slashing . | . . . . . . Piercing . | . . . . . . Sneak Attacks . | . . . . . . Combat Hostiles . | . . . . . . Follow-up Attacks . | . . . . . . Damage Inflicted 2224 | . 424 563 863 374 . Guns 2129 | . 335 563 857 374 . Cannons . | . . . . . . Explosions 89 | . 89 . . . . Melee . | . . . . . . Ramming 6 | . . . 6 . . Kinetic 8 | . . . . 8 . Thermal 2121 | . 335 563 857 366 . Explosive . | . . . . . . Electromagnetic 89 | . 89 . . . . Impact . | . . . . . . Slashing . | . . . . . . Piercing . | . . . . . . Highest Corruption 1 | . . . . 1 1 Average Corruption 1 | . . . . 1 1 Corruption Purged . | . . . . . . Corruption Blocked . | . . . . . . Effects 4 | . . . . . 4 Message Errors 1 | . . . . . 1 Matter Fused 2 | . . . . . 2 Misfires 1 | . . . . . 1 Overload Shots . | . . . . . . Overflow Damage . | . . . . . . Projectiles . | . . . . . . Explosions . | . . . . . . Melee . | . . . . . . Knockbacks 1 | . . . 1 . . Impact 1 | . . . 1 . . Kinetic . | . . . . . . Secondary . | . . . . . . Self-Inflicted Damage 19 | . 19 . . . . Shots 1 | . 1 . . . . Rammed 1 | . . . 1 . . Targets Rammed 1 | . . . 1 . . Kicked . | . . . . . . Crushed . | . . . . . . Highest Temperature 210 | . 8 18 210 . . Average Temperature 30 | . 3 5 51 . . Received Heat Transfer 624 | . 75 225 276 48 . Siege Activations . | . . . . . . Robots Corrupted . | . . . . . . Combat Hostiles . | . . . . . . Parts Fried . | . . . . . . Impact Corruptions . | . . . . . . Robots Melted 2 | . . 1 1 . . Combat Hostiles 2 | . . 1 1 . . Parts Melted 31 | . 3 8 17 3 . Heat Transferred 6956 | . 1147 1813 2997 999 . Parts Sabotaged . | . . . . . . Parts Stolen . | . . . . . . Parts Stripped . | . . . . . . Power Chain Reactions . | . . . . . . Missiles Intercepted . | . . . . . . Alert | -11 -10 -10 -9 -9 -9 ------- Run | Jun Mat Min Mat Min Exi Peak Influence 291 | . 229 266 291 95 . Initial 88 | . . 88 25 48 . Average 118 | . 123 167 168 47 . Maximum Alert Level 1 | . 1 1 1 . . Low Security (%) 78 | 100 65 66 65 100 . Level 1 21 | . 34 33 34 . . Level 2 . | . . . . . . Level 3 . | . . . . . . Level 4 . | . . . . . . Level 5 . | . . . . . . High Security . | . . . . . . Max Security . | . . . . . . Squads Dispatched 2 | . 2 . . . . Investigation 1 | . 1 . . . . Extermination . | . . . . . . Reinforcement 1 | . 1 . . . . Assault . | . . . . . . Garrison . | . . . . . . Intercept . | . . . . . . Searches Triggered . | . . . . . . Construction Impeded . | . . . . . . Haulers Reinforced . | . . . . . . Active Scanning Responses . | . . . . . . Cargo Convoy Interrupts . | . . . . . . Stealth | -11 -10 -10 -9 -9 -9 --------- Run | Jun Mat Min Mat Min Exi Distress Signals 5 | . 2 . 2 1 . Communications Jammed . | . . . . . . Distress Signals . | . . . . . . Times Spotted 55 | . 12 9 22 5 7 Peak Tracking Total 12 | . 4 3 5 3 12 Tactical Retreats 7 | . . 1 3 1 2 Traps | -11 -10 -10 -9 -9 -9 ------- Run | Jun Mat Min Mat Min Exi Traps Triggered 1 | . 1 . . . . Indirectly . | . . . . . . Trap Hack Attempts . | . . . . . . Triggered . | . . . . . . Disarmed . | . . . . . . Reprogrammed 6 | . . . 6 . . Reused 3 | . . . 3 . . Traps Extracted . | . . . . . . Installed 4 | . . 2 2 . . Triggered 3 | . . . 3 . . Most Traps Carried 2 | . . 2 2 . . Machines | -11 -10 -10 -9 -9 -9 ---------- Run | Jun Mat Min Mat Min Exi Machines Disabled 2 | . 2 . . . . Max in Single Turn 2 | . 2 . . . . Machines Repaired . | . . . . . . Machines Sabotaged . | . . . . . . Overloaded Fab Kills . | . . . . . . Hacking | -11 -10 -10 -9 -9 -9 --------- Run | Jun Mat Min Mat Min Exi Machines Accessed 8 | . 3 . 3 1 1 Terminals 5 | . 3 . 2 . . Fabricators . | . . . . . . Repair Stations . | . . . . . . Recycling Units . | . . . . . . Scanalyzers 1 | . . . 1 . . Garrison Access . | . . . . . . Total Hacks 18 | . 8 . 8 1 1 Successful 11 | . 3 . 6 1 1 Failed 7 | . 5 . 2 . . Catastrophic . | . . . . . . Database Lockouts . | . . . . . . Manual 10 | . 5 . 4 . 1 Terminals 14 | . 8 . 6 . . Fabricators . | . . . . . . Repair Stations . | . . . . . . Recycling Units . | . . . . . . Scanalyzers 2 | . . . 2 . . Garrison Access . | . . . . . . Terminal Hacks 6 | . 1 . 3 1 1 Open Door 1 | . . . . 1 . Branch Access Points 1 | . . . 1 . . Terminal Index 1 | . 1 . . . . Reprogram Traps 1 | . . . 1 . . Zone Layout 1 | . . . 1 . . EX-Prototype ID Bank 1 | . . . . . 1 Fabricator Hacks . | . . . . . . Repair Station Hacks . | . . . . . . Recycling Unit Hacks . | . . . . . . Scanalyzer 2 | . . . 2 . . Insert Component 1 | . . . 1 . . Analyze 1 | . . . 1 . . Garrison Access Hacks . | . . . . . . Unauthorized Hacks 3 | . 2 . 1 . . Terminals 3 | . 2 . 1 . . Track 1 | . . . 1 . . Botnet 2 | . 2 . . . . Fabricators . | . . . . . . Repair Stations . | . . . . . . Recycling Units . | . . . . . . Scanalyzers . | . . . . . . Garrison Access . | . . . . . . Data Cores Recovered . | . . . . . . Used . | . . . . . . Hacking Detections 5 | . 3 . 2 . . Full Trace Events 1 | . 1 . . . . Feedback Events . | . . . . . . Feedback Blocked . | . . . . . . Robot Schematics Acquired . | . . . . . . Robots Built . | . . . . . . Authchips . | . . . . . . Time . | . . . . . . Total Robot Build Rating . | . . . . . . Part Schematics Acquired 1 | . . . 1 . . Parts Built . | . . . . . . Authchips . | . . . . . . Time . | . . . . . . Total Part Build Rating . | . . . . . . Parts Repaired . | . . . . . . Time . | . . . . . . Parts Recycled . | . . . . . . Recycled Matter . | . . . . . . Retrieved Matter . | . . . . . . Retrieved Components . | . . . . . . Parts Scanalyzed 1 | . . . 1 . . Part Schematics Acquired 1 | . . . 1 . . Parts Damaged . | . . . . . . Bothacking | -11 -10 -10 -9 -9 -9 ------------ Run | Jun Mat Min Mat Min Exi Used RIF Installer . | . . . . . . Robots Hacked . | . . . . . . Non-combat . | . . . . . . Combat . | . . . . . . Robot Hacks Applied . | . . . . . . Relay Couplers Released . | . . . . . . Fabnet Peak Effective % . | . . . . . . Robots Rewired . | . . . . . . Allies Hacked . | . . . . . . Hacks Repelled . | . . . . . . Allies | -11 -10 -10 -9 -9 -9 -------- Run | Jun Mat Min Mat Min Exi Total Allies 4 | . . 1 . 3 . Largest Group 3 | . . 1 . 3 3 Highest-Rated Group 40 | . . 31 . 40 40 Highest-Rated Ally 31 | . . 31 . 16 16 Total Orders . | . . . . . . Ally Attacks 19 | . . 9 . . 10 Total Damage 175 | . . 83 . . 92 Kills 3 | . . 2 . . 1 Allies Corrupted . | . . . . . . Allies Melted . | . . . . . . Intel | -11 -10 -10 -9 -9 -9 ------- Run | Jun Mat Min Mat Min Exi Robot Analysis Total . | . . . . . . Derelict Logs Recovered 1 | . . 1 . . . Drone Launches . | . . . . . . Drone Recoveries . | . . . . . . Exploration | -11 -10 -10 -9 -9 -9 ------------- Run | Jun Mat Min Mat Min Exi Turns Passed 3006 | 5 302 451 851 908 489 Spaces Moved 1382 | 5 161 291 416 312 197 Core 1 | . . . . . 1 Treads 628 | . . 11 109 312 196 Legs 22 | 5 17 . . . . Wheels 731 | . 144 280 307 . . Hover . | . . . . . . Flight . | . . . . . . Fastest Speed 105 | 120 115 105 105 240 240 Average Speed 173 | 120 115 115 151 240 247 Slowest Speed 1400 | 120 120 240 480 240 1400 Overloaded Moves . | . . . . . . Propulsion Burnouts . | . . . . . . Robots Hopped . | . . . . . . Cave-ins Triggered . | . . . . . . Exploration Rate (%) 41 | 2 26 73 33 65 48 Regions Visited 5 Branch Regions 3 Pre-discovered Areas . | . . . . . . Known Exits Taken 2 | . . . 1 1 . Unknown Exits Taken 3 | 1 1 1 . . . Scrap Searched 1 | . . 1 . . . Spaces Dug . | . . . . . . Terrain Destroyed . | . . . . . . Melee . | . . . . . . Projectile . | . . . . . . AOE . | . . . . . . Terrain Rammed . | . . . . . . Walls Destroyed . | . . . . . . Machines Disabled . | . . . . . . Actions | -11 -10 -10 -9 -9 -9 --------- Run | Jun Mat Min Mat Min Exi Total 1793 | 4 242 339 562 436 210 Wait 200 | . 34 6 62 98 . Move 1377 | 4 160 290 415 311 197 Hop . | . . . . . . Pick Up 39 | . 12 3 18 2 4 Fast Attach 8 | . 3 1 4 . . Attach 11 | . 2 2 2 3 2 Detach 1 | . . . 1 . . Swap 12 | . 3 3 4 2 . Drop 29 | . 9 . 12 1 7 Fire 111 | . 19 32 41 19 . Melee . | . . . . . . Ram . | . . . . . . Kick . | . . . . . . Crush 1 | . . . 1 . . Escape Stasis . | . . . . . . Rewire . | . . . . . . Trap 4 | . . 2 2 . . Miscellaneous . | . . . . . . Route ------- -11/Junkyard -10/Materials -10/Mines (discovered 2 exits: *Mat x2) -9/Materials (discovered 3 exits: *Mat / *Min x2) -9/Mines (discovered 3 exits: *Mat x2 / *Exi) -9/Exiles History --------- Turn | Location | Event 1 | -11/Junkyard | Discovered new exit (range 1) 6 | -11/Junkyard | Entered Materials 280 | -10/Materials | Discovered new exit (range 14) 308 | -10/Materials | Entered Mines 311 | -10/Mines | Received a Mining Laser from a helpful Derelict 317 | -10/Mines | Build established: Mutant 387 | -10/Mines | Discovered new exit (range 6) 414 | -10/Mines | Learned Materials trap positions 713 | -10/Mines | Found a hidden stash of uninstalled traps 747 | -10/Mines | Discovered new exit (range 10) 759 | -10/Mines | Entered Materials 759 | -9/Materials | Evolved 2 slots: Propulsion x1, Utility x1 760 | -9/Materials | Loaded intel: 26 trap records 1063 | -9/Materials | Identified exit to Mines 1127 | -9/Materials | Discovered new exit (range 16) 1208 | -9/Materials | Build established: Scavenger-Mutant 1610 | -9/Materials | Entered Mines 1631 | -9/Mines | Met a Derelict bent on vengeance 1688 | -9/Mines | Assembled infested the area 1807 | -9/Mines | Received a Rocket Launcher from a helpful Derelict 1820 | -9/Mines | Discovered new exit (range 4) 1827 | -9/Mines | Identified exit to Materials 1889 | -9/Mines | Discovered exit to Materials (range 11) 2426 | -9/Mines | Found the Drone Emporium 2482 | -9/Mines | Assisted by bots powering up and referring to "LRC-V3" 2506 | -9/Mines | Deemed a non-threat by the Exiles lab entrance 2506 | -9/Mines | Discovered new exit (range 5) 2514 | -9/Mines | Identified exit to Exiles 2518 | -9/Mines | Entered Exiles 2518 | -9/Exiles | Accompanied by 3 allies 2578 | -9/Exiles | Met 8R-AWN 2669 | -9/Exiles | Met EX-HEX 2737 | -9/Exiles | Met EX-BIN 2768 | -9/Exiles | Aligned with FarCom system 2770 | -9/Exiles | Given EX-Vault access code 2849 | -9/Exiles | Opened EX-Vault 2872 | -9/Exiles | Found Flying Fortress v7 2928 | -9/Exiles | Warned to stay clear of 0b10 Research branches 2980 | -9/Exiles | Attacked by the Exiles 2986 | -9/Exiles | Allies destroyed EX-BIN 2997 | -9/Exiles | Core integrity fell below 50% 3006 | -9/Exiles | Core integrity fell below 20% 3007 | -9/Exiles | Destroyed by DAS Turret with DAS Cannon Last Messages --------------- 02980_ EXILES: Hostile robot within lab perimeter. Defensive protocols time, folks! 02983_ Machine disabled. 02986_ EX-BIN: "You can't kill me, my evil twin will get revenge!" 02986_ EX-BIN destroyed. 02989_ Lgt. Treads destroyed. 02991_ Mercenary 2a destroyed. 02991_ Lgt. Treads destroyed. 02993_ as-77740 destroyed. 02993_ Trooper 2a destroyed. 02993_ Beam Rifle destroyed. 02994_ Trooper 2b knocked back. 02995_ Lgt. Treads destroyed. 02995_ Imp. Ion Engine destroyed. 02997_ Lgt. Assault Rifle destroyed. 03000_ Lgt. Treads destroyed. 03000_ H0-OV1(z) destroyed. 03003_ Knocked back. 03007_ Cooling System destroyed. 03007_ System corrupted by crushing effect (+3). Map ----- +----------------------------------------------------+ | ?????????????????????????????"""" ## #??????? | | ????????????????????????????#""X" #??????? | | ????????????????????????????#" #??????? | | ????????????????????????????#" ## #??????? | | ????????????????????????????#""""""?# #?###### | | ????????????????????????????##"###??# #?#""""" | | ????????????????????????????????????# #?#""""" | | ????????????????????????????????????# #?#""""" | | ???????????????????????????????????## ###"" "" | | ???????????????????????????????????#" "" | | ???????????????????????????????????#" " | | ???????????????????????????????????#" " | | ???????????????????????????????????#" " | | ??????????????????????##???????????#" " | | ?????????????????????? ???????????#" " | | ??????????????????????" ???????????## " | | ?????????????????????"" ????????????# " | | ????????????????????#"" ????????????#" "X" " | | ????????????????????#"" ???????????#" """ | | ????????????????????? ???????????#" """"""" | | ??????????????????????" ??????????##" ######## | | ??????????????????????# ?????????##""! #??????? | | ????????????????????#?# ###?######""!%! #??????? | | ??????????? """#####X# #"###"""""""*! ##?????? | | ?????????? %"""""" " "" ##???## | | ?????????? @""%""" " %% #####" | | ?????????? aa %" % [= % " | | ?????????? % | | ???????????# a a | | ???????????## =%! a | | ????????????## | | ?????????????##" | | ??????????????#""" """""" | | ??????????????#" ######""" | | ???????????????" ""##????#####""" | | ???????????????"" """##?????????##""" | | ???????????????" """##???????????#"""" | | ???????????????" ""#????????????#"" | | ???????????????? ???????????????""" | | ?????????????????? ??????????????? | | ????????????????????? ??????????????? | | ??????????????????????? ??????????????? | | ??????????????????????????????????????????? | | ??????????????????????????????????????????? | | ???????????????????????????????????????????? | | ????????????????????????????????????????????? " " | | ??????????????????????????????????????????????""" | | ????????????????????????????????????????????????"" | | ?????????????????????????????????????????????????? | | ?????????????????????????????????????????????????? | +----------------------------------------------------+ Best States ------------- Heat Dissipation 50 Energy Generation 12 Energy Capacity 265 Matter Stores 300 Matter Capacity 300 Sight Range 16 Terrain Scan Density 10 Armor Coverage 150 Evasion (%) 45 Recoil Reduction 3 Item Schematics ----------------- Imp. Ion Engine | -9/Materials | Scanalyzed Robot Schematics ------------------ None Fabricated ------------ Nothing Alien Tech Used ----------------- None Achievements -------------- None Challenges ------------ None Game ------ Seed SalvageMetafiberWell Manual? 0 Play Time 00:24:19 Cumulative 42.1 hours Start 2023.03.08 @ 22:32:31 End 2023.03.08 @ 22:53:53 Sessions 1 Manual Loads 0 Difficulty Rogue Special Mode None Game No. 79 Rogue 79 Adventurer 0 Explorer 0 Win Type - Total 0 Types 0/0/0/0/0/0/0/0/0 Lore% 55 Gallery% 53 Achievement% 58 Wizard Run 0 Options --------- ASCII 0 Keyboard 1 Movement Numpad Keybinds 0 Fullscreen 1 Font 18/SmallcapsGlow Map View 76x50 Tactical HUD 1 Map Filters NONE Filters NONE Steam 1 RUN: 61b35f8f-ad17-4aed-acfd-bdaf27781dd2